Cogmind - Beta 16 @@@ ROGUE MODE // 2025.11.20 @ 15:51:59 Player: sweetandcool Result: Destroyed by G-47 Trooper with Particle Gun Performance ------------- Evolutions (2) 1000 Regions Visited (5) 1000 Robots Destroyed (44) 220 Value Destroyed (1116) 1116 Prototype IDs (39) 780 Alien Tech Used (0) 0 Bonus (420) 420 TOTAL SCORE: 4536 Bonus ------- Follower Combat Kills 120 Aligned with FarCom 300 Cogmind --------- Core Integrity 0/550 Matter 20/300 Energy 100/100 System Corruption 0% Temperature Hot (259) Movement Treading (240) Ox2 Location -8/Materials Parts ------- > --- POWER (1) -------- (None) > --- PROPULSION (3) --- Light Treads > --- UTILITY (5) ------ Cryofiber Web Large Storage Unit Large Storage Unit 0b10 Alert Chip > --- WEAPON (2) ------- Enhanced Autogun > --- INVENTORY (15) --- Ion Engine Light Ion Engine Light Treads Small Storage Unit Small Storage Unit Medium Storage Unit EM Pulse Gun Light Assault Rifle Light Assault Rifle Autogun Enhanced Autogun Datajack Improved Datajack Improved Datajack Peak State ------------ > --- POWER ------------ Light Ion Engine > --- PROPULSION ------- Light Treads Light Treads Light Treads > --- UTILITY ---------- Cryofiber Web Large Storage Unit Large Storage Unit 0b10 Alert Chip > --- WEAPON ----------- Enhanced Autogun Plasma Flamer > --- INVENTORY -------- Ion Engine Light Ion Engine Light Treads Small Storage Unit Small Storage Unit Medium Storage Unit EM Pulse Gun Light Assault Rifle Light Assault Rifle Autogun Enhanced Autogun Datajack Improved Datajack Improved Datajack [Rating: 26] Favorites ----------- Power Ion Engine Engine Ion Engine Power Core Light Nuclear Core Propulsion Light Treads Treads Light Treads Wheel Compact Wheel Utility Large Storage Unit Device Cryofiber Web Storage Large Storage Unit Processor 0b10 Alert Chip Weapon Light Assault Rifle Energy Gun Medium Laser Ballistic Gun Light Assault Rifle Ballistic Cannon Improved Light Cannon Special Weapon Plasma Flamer Special Melee Weapon Datajack Build | -11 -10 -10 -10 -9 -8 ------- Run | Yrd Mat Min Exi Min Mat Slots Evolved 4 | . . . . . 4 Power . | . . . . . . Propulsion 1 | . . . . . 1 Utility 3 | . . . . . 3 Weapon . | . . . . . . Parts Attached 31 | 7 6 1 1 1 15 Power 5 | 1 1 1 . . 2 Engine 4 | 1 1 1 . . 1 Core 1 | . . . . . 1 Reactor . | . . . . . . Propulsion 7 | 2 1 . . . 4 Treads 6 | 2 1 . . . 3 Leg . | . . . . . . Wheel 1 | . . . . . 1 Hover . | . . . . . . Flight . | . . . . . . Utility 8 | 2 3 . . . 3 Device 2 | . . . . . 2 Storage 5 | 2 3 . . . . Processor 1 | . . . . . 1 Hackware . | . . . . . . Protection . | . . . . . . Artifact . | . . . . . . Weapon 11 | 2 1 . 1 1 6 Energy Gun 2 | 1 . . . . 1 Energy Cannon . | . . . . . . Ballistic Gun 6 | 1 1 . . 1 3 Ballistic Cannon 1 | . . . . . 1 Launcher . | . . . . . . Special Weapon 1 | . . . . . 1 Impact Weapon . | . . . . . . Slashing Weapon . | . . . . . . Piercing Weapon . | . . . . . . Special Melee Weapon 1 | . . . 1 . . Unidentified Prototypes 2 | . . . . . 2 Parts Lost 12 | . . . . 2 10 Power 3 | . . . . 1 2 Propulsion 5 | . . . . 1 4 Utility 1 | . . . . . 1 Weapon 3 | . . . . . 3 Highest Loss Streak 4 | . . . . 2 4 To Critical Strikes . | . . . . . . Average Backups 11 | 1 10 14 15 13 13 Power 1 | . 1 2 2 1 1 Propulsion . | . . 1 1 . . Utility 2 | . 1 3 3 4 3 Weapon 6 | . 6 7 8 7 6 Tool/Special . | . . . . . . Unused Backups 10 | . . . . . 10 Power 1 | . . . . . 1 Propulsion 1 | . . . . . 1 Utility 2 | . . . . . 2 Weapon 4 | . . . . . 4 Tool/Special 2 | . . . . . 2 Average Slot Usage (%) 92 | . 100 100 100 97 66 Engine 11 | . 14 14 14 13 3 Treads 24 | . 28 28 28 26 13 Device 2 | . . . . . 9 Storage 25 | . 28 28 28 28 18 Ballistic Gun 22 | . 27 28 15 28 15 Special Melee Weapon 2 | . . . 12 . . Peak Build Rating 26 | 7 8 9 9 9 26 Average Rating 9 | 5 7 8 9 8 14 On Entrance 7 | . 7 8 9 9 9 Avg Prop Armor Cover (%) 2 | . . . . . 2 Naked Turns . | . . . . . . Heaviest Build 67 | 16 67 47 47 47 50 Greatest Support 60 | 40 40 40 40 40 60 Greatest Overweight (x) 15 | . 1 1 1 1 15 Average Overweight (x) . | . . 1 1 1 1 Largest Inventory Capacity 20 | 8 20 15 15 15 15 Average Capacity 13 | 7 12 15 15 15 15 Most Carried 15 | 2 14 15 15 15 15 Average Carried 11 | 1 10 14 14 13 13 Final Capacity 15 | 8 15 15 15 15 15 Final Carried 15 | 2 14 15 15 13 14 Class Distribution -------------------- 93% | Mutant 6% | Scavenger-Mutant Dominant Class ---------------- Mutant | -10/Materials Mutant | -10/Mines Mutant | -10/Exiles Mutant | -9/Mines Mutant | -8/Materials Resources | -11 -10 -10 -10 -9 -8 ----------- Run | Yrd Mat Min Exi Min Mat Matter Collected 1158 | 267 164 34 . 52 641 Remotely . | . . . . . . Salvage Created 1792 | 61 487 37 . 96 1111 Parts 79 | 3 24 2 . 3 47 Haulers Intercepted 4 | . 1 . . . 3 Recyclers Shooed 7 | . 1 . . . 6 Parts Field Recycled . | . . . . . . Retrieved Matter . | . . . . . . Parts Self-Destructed . | . . . . . . Prevented . | . . . . . . Parts Restored . | . . . . . . Kills | -11 -10 -10 -10 -9 -8 ------- Run | Yrd Mat Min Exi Min Mat Combat Hostiles Destroyed 29 | . 9 1 . 2 17 Guns 26 | . 9 1 . 2 14 Cannons 3 | . . . . . 3 Classes Destroyed 9 | 1 3 . . . 5 Worker 2 | . . . . . 2 Hauler 4 | . 1 . . . 3 Recycler 8 | 1 2 . . . 5 Watcher 1 | . . . . . 1 Swarmer 7 | . 3 . . . 4 Grunt 18 | . 6 1 . 2 9 Duelist 1 | . . . . . 1 Sentry 2 | . . . . . 2 Hunter 1 | . . . . . 1 Best Kill Streak 6 | 1 5 1 . 2 6 Combat Bots Only 5 | . 4 1 . 2 5 Max Kills in Single Turn 2 | 1 1 1 . 1 2 Gunslinging 1 | . . . . . 1 Exploded . | . . . . . . Melee . | . . . . . . Uniques/NPCs Destroyed . | . . . . . . Combat | -11 -10 -10 -10 -9 -8 -------- Run | Yrd Mat Min Exi Min Mat Hostile Shots Fired 269 | . 64 7 . 22 176 Missed 69 | . 19 1 . 4 45 Hits 200 | . 45 6 . 18 131 Melee 3 | . . . . . 3 Projectile 197 | . 45 6 . 18 128 Critical Strikes 5 | . 2 . . . 3 Damage Taken 2731 | . 501 88 . 254 1888 Core 720 | . 83 23 . 52 562 Absorbed by Shields 143 | . . . . . 143 Regen/Repaired (Parts) 117 | . . . . . 117 Core Remaining (%) 68 | 100 . . . 36 . Volleys Fired 211 | 7 52 7 . 11 134 Largest 2 | 2 2 2 . 2 2 Hottest 125 | 70 40 40 . 40 125 Shots Fired 416 | 14 104 14 . 22 262 Gun 371 | 14 104 14 . 22 217 Cannon 40 | . . . . . 40 Launcher . | . . . . . . Special 5 | . . . . . 5 Kinetic 403 | 7 104 14 . 22 256 Thermal 13 | 7 . . . . 6 Explosive . | . . . . . . Electromagnetic . | . . . . . . Robot Hit Streak 24 | 6 9 18 . 24 14 Robot Miss Streak 6 | 2 4 . . 2 6 Penetration Max . | . . . . . . Secondary Targets 2 | . . . . 1 1 Max Gunslinging Chain 1 | . . . . 1 1 Shots Hit Robots 264 | 9 69 14 5 16 151 Core Hits 99 | 2 29 4 . 6 58 Critical Kills . | . . . . . . Critical Parts Destroyed 2 | . . . . . 2 Critical Strikes 3 | 1 . . . . 2 Burn 1 | 1 . . . . . Destroy 2 | . . . . . 2 Melee Attacks 5 | . . . 5 . . Impact . | . . . . . . Slashing . | . . . . . . Piercing . | . . . . . . Sneak Attacks 5 | . . . 5 . . Combat Hostiles . | . . . . . . Follow-up Attacks . | . . . . . . Damage Inflicted 3167 | 92 565 113 . 132 2265 Guns 2337 | 92 565 113 . 132 1435 Cannons 780 | . . . . . 780 Explosions . | . . . . . . Melee . | . . . . . . Ramming . | . . . . . . Kinetic 3066 | 41 565 113 . 132 2215 Thermal 101 | 51 . . . . 50 Explosive . | . . . . . . Electromagnetic . | . . . . . . Impact . | . . . . . . Slashing . | . . . . . . Piercing . | . . . . . . Highest Corruption . | . . . . . . Average Corruption . | . . . . . . Corruption Purged . | . . . . . . Corruption Blocked . | . . . . . . Overload Shots . | . . . . . . Overflow Damage 9 | . . . . . 9 Projectiles 9 | . . . . . 9 Explosions . | . . . . . . Melee . | . . . . . . Knockbacks 11 | . . . . . 11 Impact . | . . . . . . Kinetic 7 | . . . . . 7 Secondary 4 | . . . . . 4 Self-Inflicted Damage . | . . . . . . Shots . | . . . . . . Rammed . | . . . . . . Targets Rammed . | . . . . . . Kicked . | . . . . . . Crushed . | . . . . . . Highest Temperature 263 | 90 40 12 . 35 263 Average Temperature 32 | 37 11 7 . 17 139 Received Heat Transfer 1263 | . 240 51 . 141 831 Siege Activations . | . . . . . . Martial Activations . | . . . . . . Shielding Activations . | . . . . . . Robots Disrupted . | . . . . . . Combat Hostiles . | . . . . . . Robots Corrupted . | . . . . . . Combat Hostiles . | . . . . . . Parts Fried . | . . . . . . Impact Corruptions . | . . . . . . Robots Melted . | . . . . . . Combat Hostiles . | . . . . . . Parts Melted 1 | . . . . . 1 Heat Transferred 542 | 222 . . . . 320 Parts Sabotaged . | . . . . . . Parts Stolen . | . . . . . . Parts Stripped . | . . . . . . Power Chain Reactions . | . . . . . . Alert | -11 -10 -10 -10 -9 -8 ------- Run | Yrd Mat Min Exi Min Mat Maximum Alert Level . | . . . . . . Low Security (%) 100 | 100 100 100 . 100 100 Level 1 . | . . . . . . Level 2 . | . . . . . . Level 3 . | . . . . . . Level 4 . | . . . . . . Level 5 . | . . . . . . High Security . | . . . . . . Max Security . | . . . . . . Peak Influence 172 | 5 160 74 . 30 172 Initial . | . . . . . . Average 34 | . 34 36 . 5 47 Influence Increases 934 | 5 287 132 . 50 460 Destroy 0b10 Robot/C 652 | . 180 100 . 40 332 Destroy 0b10 Robot/NC 80 | 5 15 5 . . 55 Destroy Leader 138 | . 42 20 . 10 66 Allied During Kill 7 | . . 7 . . . Successful Hack 12 | . 5 . . . 7 Lose Combat Pursuer 45 | . 45 . . . . Influence Decreases 800 | 5 287 110 22 50 326 Entered New Map 22 | . . . 22 . . Time Decay 648 | 5 287 90 . 40 226 Lost Part 110 | . . . . 10 100 Lost Ally 20 | . . 20 . . . Squads Dispatched 4 | . 1 . . . 3 Investigation 1 | . 1 . . . . Extermination . | . . . . . . Reinforcement 2 | . . . . . 2 Assault . | . . . . . . Garrison 1 | . . . . . 1 Intercept . | . . . . . . Searches Triggered . | . . . . . . Construction Impeded 1 | . . . . . 1 Haulers Reinforced . | . . . . . . Active Scanning Responses . | . . . . . . Cargo Convoy Interrupts . | . . . . . . Stealth | -11 -10 -10 -10 -9 -8 --------- Run | Yrd Mat Min Exi Min Mat Distress Signals 3 | . 1 . . . 2 Communications Jammed . | . . . . . . Distress Signals . | . . . . . . Times Spotted 62 | . 25 5 . 2 30 Peak Tracking Total 7 | . 6 3 . 2 7 Tactical Retreats 3 | . 3 . . . . Traps | -11 -10 -10 -10 -9 -8 ------- Run | Yrd Mat Min Exi Min Mat Traps Triggered . | . . . . . . Indirectly . | . . . . . . Trap Hack Attempts . | . . . . . . Triggered . | . . . . . . Disarmed . | . . . . . . Reprogrammed . | . . . . . . Reused . | . . . . . . Traps Extracted . | . . . . . . Installed . | . . . . . . Triggered . | . . . . . . Machines | -11 -10 -10 -10 -9 -8 ---------- Run | Yrd Mat Min Exi Min Mat Machines Disabled . | . . . . . . Max in Single Turn . | . . . . . . Machines Repaired . | . . . . . . Machines Dismantled . | . . . . . . Machines Sabotaged . | . . . . . . Overloaded Fab Kills . | . . . . . . Hacking | -11 -10 -10 -10 -9 -8 --------- Run | Yrd Mat Min Exi Min Mat Machines Accessed 11 | . 8 . 1 . 2 Terminals 8 | . 8 . . . . Fabricators . | . . . . . . Repair Stations 1 | . . . . . 1 Recycling Units . | . . . . . . Scanalyzers 1 | . . . . . 1 Garrison Access . | . . . . . . Total Hacks 24 | . 16 . 1 . 7 Successful 10 | . 2 . 1 . 7 Failed 14 | . 14 . . . . Catastrophic 6 | . 6 . . . . Database Lockouts . | . . . . . . Manual 16 | . 15 . 1 . . Terminals 16 | . 16 . . . . Fabricators . | . . . . . . Repair Stations 2 | . . . . . 2 Recycling Units . | . . . . . . Scanalyzers 5 | . . . . . 5 Garrison Access . | . . . . . . Terminal Hacks 3 | . 2 . 1 . . Prototype ID Bank 2 | . 2 . . . . Proto ID Catalog 1 | . . . 1 . . Fabricator Hacks . | . . . . . . Repair Station Hacks 2 | . . . . . 2 Scan Component 1 | . . . . . 1 Repair 1 | . . . . . 1 Recycling Unit Hacks . | . . . . . . Scanalyzer 5 | . . . . . 5 Insert Component 1 | . . . . . 1 Analyze 1 | . . . . . 1 Retrieve Study 3 | . . . . . 3 Garrison Access Hacks . | . . . . . . Unauthorized Hacks . | . . . . . . Terminals . | . . . . . . Fabricators . | . . . . . . Repair Stations . | . . . . . . Recycling Units . | . . . . . . Scanalyzers . | . . . . . . Garrison Access . | . . . . . . Data Cores Recovered . | . . . . . . Used . | . . . . . . Hacking Detections 9 | . 8 . . . 1 Full Trace Events 1 | . 1 . . . . Feedback Events . | . . . . . . Feedback Blocked . | . . . . . . Robot Schematics Acquired . | . . . . . . Robots Built . | . . . . . . Authchips . | . . . . . . Time . | . . . . . . Total Robot Build Rating . | . . . . . . Part Schematics Acquired 1 | . . . . . 1 Parts Built . | . . . . . . Authchips . | . . . . . . Time . | . . . . . . Total Part Build Rating . | . . . . . . Part Studies Acquired 3 | . . . . . 3 Parts Repaired 1 | . . . . . 1 Time 26 | . . . . . 26 Parts Recycled . | . . . . . . Recycled Matter . | . . . . . . Retrieved Matter . | . . . . . . Retrieved Components . | . . . . . . Parts Scanalyzed 1 | . . . . . 1 Part Schematics Acquired 1 | . . . . . 1 Parts Damaged . | . . . . . . Bothacking | -11 -10 -10 -10 -9 -8 ------------ Run | Yrd Mat Min Exi Min Mat Used RIF Installer . | . . . . . . Robots Hacked 5 | . . . 5 . . Non-combat 2 | . . . 2 . . Combat 3 | . . . 3 . . Robot Hacks Applied 5 | . . . 5 . . parse_system 5 | . . . 5 . . Relay Couplers Released . | . . . . . . Fabnet Peak Effective % . | . . . . . . Robots Rewired . | . . . . . . Allies Hacked . | . . . . . . Hacks Repelled . | . . . . . . Allies | -11 -10 -10 -10 -9 -8 -------- Run | Yrd Mat Min Exi Min Mat Total Allies 2 | . . 2 . . . Largest Group 2 | . . 2 . . . Highest-Rated Group 62 | . . 62 . . . Highest-Rated Ally 31 | . . 31 . . . Total Orders . | . . . . . . Ally Attacks 23 | . . 23 . . . Total Damage 406 | . . 406 . . . Kills 5 | . . 5 . . . Allies Corrupted . | . . . . . . Allies Melted . | . . . . . . Intel | -11 -10 -10 -10 -9 -8 ------- Run | Yrd Mat Min Exi Min Mat Active Infowar (turns) . | . . . . . . Robot Analysis Total . | . . . . . . Derelict Logs Recovered . | . . . . . . Drone Launches . | . . . . . . Drone Recoveries . | . . . . . . Exploration | -11 -10 -10 -10 -9 -8 ------------- Run | Yrd Mat Min Exi Min Mat Turns Passed 3547 | 142 1649 238 565 173 780 Spaces Moved 1342 | 71 734 91 232 58 156 Core 14 | 2 . . . . 12 Treads 1321 | 69 734 91 232 58 137 Legs . | . . . . . . Wheels 7 | . . . . . 7 Hover . | . . . . . . Flight . | . . . . . . Fastest Speed 50 | 50 160 240 240 240 130 Average Speed 215 | 156 203 240 240 240 242 Slowest Speed 800 | 160 240 240 240 240 800 Overloaded Moves . | . . . . . . Propulsion Burnouts . | . . . . . . Robots Hopped . | . . . . . . Potential Cave-ins . | . . . . . . Cave-ins Triggered . | . . . . . . Exploration Rate (%) 39 | 6 99 29 65 17 19 Regions Visited 5 Branch Regions 3 Pre-discovered Areas . | . . . . . . Known Exits Taken . | . . . . . . Unknown Exits Taken 5 | 1 1 1 1 1 . Scrap Searched 2 | . . 1 . 1 . Spaces Dug . | . . . . . . Terrain Destroyed . | . . . . . . Melee . | . . . . . . Projectile . | . . . . . . AOE . | . . . . . . Terrain Rammed . | . . . . . . Walls Destroyed . | . . . . . . Machines Disabled . | . . . . . . Actions | -11 -10 -10 -10 -9 -8 --------- Run | Yrd Mat Min Exi Min Mat Total 1649 | 86 809 100 239 75 340 Wait 34 | . 5 . . 4 25 Move 1337 | 70 733 90 231 57 156 Hop . | . . . . . . Pick Up 19 | 2 10 1 1 . 5 Fast Attach 17 | 7 1 . . . 9 Attach 5 | . . . . 2 3 Detach . | . . . . . . Swap 12 | . 5 1 1 1 4 Drop 9 | . 3 1 1 . 4 Fire 211 | 7 52 7 . 11 134 Melee 5 | . . . 5 . . Ram . | . . . . . . Kick . | . . . . . . Crush . | . . . . . . Escape Stasis . | . . . . . . Rewire . | . . . . . . Trap . | . . . . . . Miscellaneous . | . . . . . . Route ------- -11/Scrapyard -10/Materials (discovered 5 exits: [*Mat x3] / [*Min] / [*Sub]) -10/Mines -10/Exiles -9/Mines -8/Materials (discovered 2 exits: [*Fac] / [*Sto]) History --------- Turn | Location | Event 23 | -11/Scrapyard | Discovered new exit (range 15) 143 | -11/Scrapyard | Entered Materials 302 | -10/Materials | Build established: Mutant 470 | -10/Materials | Discovered new exit (range 16) 488 | -10/Materials | Discovered new exit (range 16) 718 | -10/Materials | Discovered new exit (range 8) 1164 | -10/Materials | Discovered new exit (range 16) 1577 | -10/Materials | Discovered new exit (range 15) 1792 | -10/Materials | Entered Mines 1824 | -10/Mines | Received a Mining Laser from a helpful Derelict 1879 | -10/Mines | A weapon hastily lodged in a ceiling crevice suddenly fell to the ground 1908 | -10/Mines | Escorted by a lone wolf Derelict 1914 | -10/Mines | Found a hidden stash of uninstalled traps 2018 | -10/Mines | Deemed a non-threat by the Exiles lab entrance 2018 | -10/Mines | Discovered new exit (range 5) 2030 | -10/Mines | Entered Exiles 2030 | -10/Exiles | Accompanied by 1 ally 2088 | -10/Exiles | Met 8R-AWN 2150 | -10/Exiles | Met EX-HEX 2223 | -10/Exiles | Met EX-BIN 2268 | -10/Exiles | Aligned with FarCom system 2271 | -10/Exiles | Given EX-Vault access code 2326 | -10/Exiles | Opened EX-Vault 2339 | -10/Exiles | Found 0b10 Alert Chip 2390 | -10/Exiles | Warned to stay clear of 0b10 Research branches 2452 | -10/Exiles | Met EX-DEC 2571 | -10/Exiles | Discovered new exit (range 12) 2595 | -10/Exiles | Left Exiles lab with 0b10 Alert Chip 2595 | -10/Exiles | Entered Mines 2616 | -9/Mines | Core integrity fell below 50% 2761 | -9/Mines | Discovered new exit (range 3) 2768 | -9/Mines | Entered Materials 2768 | -8/Materials | Evolved 4 slots: Propulsion x1, Utility x3 2866 | -8/Materials | Discovered new exit (range 15) 2970 | -8/Materials | Repaired Lgt. Treads+ 3119 | -8/Materials | Lost 4 parts (1p2n1u) 3176 | -8/Materials | Core integrity fell below 50% 3233 | -8/Materials | Core integrity fell below 20% 3455 | -8/Materials | Discovered new exit (range 10) 3468 | -8/Materials | Garrison activated, responded to threat 3548 | -8/Materials | Destroyed by G-47 Trooper with Particle Gun Last Messages --------------- 03463_ ALERT: Construction progress impeded, dispatching reinforcements to local area. 03466_ ALERT: Hostiles spotted, dispatching reinforcements to Terminal M001. 03466_ K-01 Serf collects debris. 03468_ H-55 Commando calls for garrison reinforcements. 03468_ ALERT: Activating Garrison Access M001. 03470_ K-01 Serf collects debris. 03470_ Penetrated by Slug. 03474_ K-01 Serf collects debris. 03475_ H-55 Commando destroyed. 03531_ Critical hit (Burn: +37). 03534_ G-47 Trooper destroyed. 03536_ Terminal disabled. 03541_ Lgt. Treads+ destroyed. 03543_ Heat Sink melted. 03543_ Y-45 Defender destroyed. 03544_ Plasma Flamer destroyed. 03546_ Lgt. Ion Engine+ destroyed. 03546_ Lgt. Treads+ destroyed. Map ----- +----------------------------------------------------+ | ?????????????????????????????????????????????????? | | ?????????????????????????????????????????????????? | | ?????????????????????????????????????????????????? | | ?????????????????????????????????????????????????? | | ?????????????????????????????????????????????????? | | ?????????????????????????????????????????????????? | | ?????????????????????????????????????????????????? | | ?????????????????????????????????????????????????? | | ?????????????????????????????????????????????????? | | ????????????????????#######??????????????????????? | | ???????????????????? #?????????????????????? | | ????????????????????[[ /?????????????????????? | | ????????????????????#%! #?????????????????????? | | ????????????????????#= #?????????????????????? | | ????????????????????# #?????????????????????? | | ????????????????????# < #?????????????????????? | | ????????????????????# #?????????????????????? | | ????????????????????+ ??????????????????????? | | ????????????????????# ??????????????????????? | | ????????????????????# ???????????????????????? | | ????????????????????# ????????????????????????? | | ????????????????????# #????????????#???????????? | | ????????????????????# #####??????? #???????????? | | ????????????????????# #"""#?????? ???+##??????? | | ????????????????????+ !# T"######+### ??????? | | ????????????????????# =%@ % t #?????? | | ????????????????????# gg% %=%= " ???????? | | ????????????????????# g *%=% #?????? | | ???????????????##???######## [#"T"### ??????? | | ??????????????? ????????#[ #??"#??????#??????? | | ?????????????? ??????#%! #????????? ???????? | | ?????????????? ????/ #???????? ????????? | | ########?????# ??# ######## ?????????? | | #?????# # # ??????????? | | """#?????# + # ???????????? | | """#????????????######### ## ????????????? | | """#?????????????########+## w#?#########???? | | #?????????????# # # ! #???? | | """#?????????????# # # #???? | | """#?????????????# + + #???? | | """#?????#####???# # # #???? | | #######"""#???########### ###########???? | | ####+### #"R"#????????????## ##????????????? | | ^ #"%"############## #????????????? | | < *%[=/% [%!*[%% %!! #????????????? | | ########### %%[[%[% #????????????? | | ######## #?????????#% ][%= [ #????????????? | | ???????#######?????????#/ !#### #????????????? | | ???????????????????????#!! #??#######????????????? | | ???????????????????????# #?????????????????????? | +----------------------------------------------------+ Best States ------------- Heat Dissipation 31 Energy Generation 14 Energy Capacity 250 Matter Stores 300 Matter Capacity 300 Sight Range 16 Terrain Scan Density 10 Base Temperature (-) 100 Evasion (%) 40 Recoil Reduction 3 Item Schematics ----------------- Datajack | -8/Materials | Scanalyzed Robot Schematics ------------------ None Fabricated ------------ Nothing Repaired ---------- Lgt. Treads | 16% | -8/Materials Studied --------- Lgt. Treads | -8/Materials | Hacked Datajack | -8/Materials | Hacked Lgt. Ion Engine | -8/Materials | Hacked Alien Tech Used ----------------- None Achievements -------------- None Challenges ------------ None Game ------ Seed MolecularActuatorMask Manual? 0 Play Time 00:26:02 Cumulative 121.8 hours Start 2025.11.20 @ 15:25:41 End 2025.11.20 @ 15:51:59 Sessions 1 Manual Loads 0 Difficulty Rogue Special Mode None Game No. 87 Rogue 87 Adventurer 0 Explorer 0 Win Type - Total 0 Types 0/0/0/0/0/0/0/0/0/0 Lore% 33 Gallery% 48 Achievement% 34 Wizard Run 0 Options --------- Layout 0 ASCII 0 Keyboard 0 Movement Numpad Keybinds 0 Fullscreen 1 Font 18/SmallcapsGlow Map View 76x50 Zoom Use 0% Tactical HUD 1 Map Filters NONE Filters NONE Steam 1 RUN: d3b9430c-5c7e-4e15-ba39-347d939692e5